Cogmind - Beta 17 @@@ ROGUE MODE // 2026.08.17 @ 01:13:00 Player: THN-L0C Result: Destroyed by 2V-G4Y(R) with Subdweller Laser Performance ------------- Evolutions (0) 0 Regions Visited (3) 600 Robots Destroyed (27) 135 Value Destroyed (538) 538 Prototype IDs (0) 0 Alien Tech Used (0) 0 Bonus (0) 0 TOTAL SCORE: 1273 Bonus ------- None Cogmind --------- Core Integrity 0/250 Matter 239/300 Energy 250/250 System Corruption 0% Temperature Cool (6) Movement Treading (160) Location -10/Subcaves Parts ------- > --- POWER (1) -------- Ion Engine > --- PROPULSION (2) --- Light Treads Light Treads > --- UTILITY (2) ------ Large Storage Unit > --- WEAPON (2) ------- Assault Rifle Assault Rifle > --- INVENTORY (15) --- Light Nuclear Core Wheel Huge Storage Unit High-capacity Matter Pod (99) Weight Redist. System Improved Terrain Scanner Seismic Detector Seismic Detector Improved Targeting Computer Subdweller Beam Cannon Assault Rifle Assault Rifle Subdweller Machine Gun Grenade Launcher Peak State ------------ > --- POWER ------------ Ion Engine > --- PROPULSION ------- Light Treads Wheel > --- UTILITY ---------- Large Storage Unit Improved Terrain Scanner > --- WEAPON ----------- Assault Rifle Assault Rifle > --- INVENTORY -------- Light Nuclear Core Light Treads Huge Storage Unit High-capacity Matter Pod Weight Redist. System Seismic Detector Seismic Detector Improved Targeting Computer Light Armor Plating Assault Rifle Assault Rifle Grenade Launcher [Rating: 10] Favorites ----------- Power Ion Engine Engine Ion Engine Propulsion Light Treads Treads Light Treads Wheel Wheel Utility Large Storage Unit Device Seismic Detector Storage Large Storage Unit Protection Light Armor Plating Weapon Assault Rifle Ballistic Gun Assault Rifle Launcher Grenade Launcher Build | -11 -10 -10 -10 ------- Run | Yrd Mat Min Sub Slots Evolved . | . . . . Power . | . . . . Propulsion . | . . . . Utility . | . . . . Weapon . | . . . . Parts Attached 19 | 7 6 3 3 Power 2 | 1 . 1 . Engine 2 | 1 . 1 . Core . | . . . . Reactor . | . . . . Propulsion 4 | 2 . 1 1 Treads 3 | 2 . . 1 Leg . | . . . . Wheel 1 | . . 1 . Hover . | . . . . Flight . | . . . . Utility 9 | 2 4 1 2 Device 3 | 1 . . 2 Storage 4 | 1 3 . . Processor . | . . . . Hackware . | . . . . Protection 2 | . 1 1 . Artifact . | . . . . Weapon 4 | 2 2 . . Energy Gun . | . . . . Energy Cannon . | . . . . Ballistic Gun 3 | 2 1 . . Ballistic Cannon . | . . . . Launcher 1 | . 1 . . Special Weapon . | . . . . Impact Weapon . | . . . . Slashing Weapon . | . . . . Piercing Weapon . | . . . . Special Melee Weapon . | . . . . Unidentified Prototypes . | . . . . Parts Lost 4 | . . 3 1 Power 1 | . . 1 . Propulsion 1 | . . 1 . Utility 2 | . . 1 1 Weapon . | . . . . Highest Loss Streak 3 | . . 3 1 To Critical Strikes . | . . . . Average Backups 11 | 2 12 14 12 Power 1 | . 1 1 1 Propulsion 1 | . 1 1 1 Utility 6 | 2 7 7 7 Weapon 2 | . 1 3 3 Tool/Special . | . . . . Unused Backups 10 | . 2 . 8 Power 1 | . . . 1 Propulsion . | . . . . Utility 6 | . 2 . 4 Weapon 3 | . . . 3 Tool/Special . | . . . . Average Slot Usage (%) 99 | . 100 98 100 Engine 13 | . 14 13 14 Treads 23 | . 28 27 14 Wheel 4 | . . 1 13 Device 8 | . 4 11 12 Storage 14 | . 14 14 14 Protection 5 | . 9 2 1 Ballistic Gun 27 | . 27 26 27 Peak Build Rating 10 | 7 9 9 10 Average Rating 8 | 6 8 8 9 On Entrance 6 | . 7 9 8 Avg Prop Armor Cover (%) 11 | . . 13 10 Naked Turns . | . . . . Heaviest Build 33 | 15 32 33 33 Greatest Support 40 | 40 40 40 20 Greatest Overweight (x) 3 | . . 3 3 Average Overweight (x) . | . . . 2 Largest Inventory Capacity 15 | 8 15 15 15 Average Capacity 13 | 7 14 15 15 Most Carried 15 | 4 15 15 14 Average Carried 11 | 2 12 14 12 Final Capacity 15 | 8 15 15 15 Final Carried 15 | 4 15 12 14 Class Distribution -------------------- 100% | Mutant Dominant Class ---------------- Mutant | -10/Materials Mutant | -10/Mines Mutant | -10/Subcaves Resources | -11 -10 -10 -10 ----------- Run | Yrd Mat Min Sub Matter Collected 1332 | 422 533 93 284 Remotely . | . . . . Salvage Created 794 | 220 470 54 50 Parts 47 | 13 30 3 1 Haulers Intercepted 1 | . 1 . . Recyclers Shooed 2 | 1 1 . . Parts Field Recycled . | . . . . Retrieved Matter . | . . . . Parts Self-Destructed 1 | . . . 1 Prevented . | . . . . Parts Restored . | . . . . Kills | -11 -10 -10 -10 ------- Run | Yrd Mat Min Sub Combat Hostiles Destroyed 23 | . 13 9 1 Guns 16 | . 11 4 1 AOE 7 | . 2 5 . Classes Destroyed 9 | 3 4 1 1 Worker 4 | 3 1 . . Tunneler 3 | 3 . . . Hauler 1 | . 1 . . Recycler 1 | 1 . . . Watcher 1 | . 1 . . Swarmer 6 | . 3 3 . Grunt 10 | . 10 . . Subdweller 1 | . . . 1 Assembled 6 | . . 6 . Best Kill Streak 6 | 3 3 6 1 Combat Bots Only 6 | . 3 6 1 Max Kills in Single Turn 2 | 1 2 2 1 Gunslinging . | . . . . Exploded 2 | . 1 2 . Melee . | . . . . Uniques/NPCs Destroyed . | . . . . Combat | -11 -10 -10 -10 -------- Run | Yrd Mat Min Sub Hostile Shots Fired 106 | . 64 27 15 Missed 32 | . 23 4 5 Hits 74 | . 41 23 10 Melee 1 | . . 1 . Projectile 73 | . 41 22 10 Critical Strikes 1 | . . . 1 Damage Taken 1062 | . 468 379 215 Core 254 | . 131 80 43 Absorbed by Shields . | . . . . Core Remaining (%) 100 | 100 . . . Volleys Fired 79 | 22 37 11 9 Largest 2 | 2 2 2 2 Hottest 40 | 40 40 40 40 Shots Fired 149 | 44 69 18 18 Gun 140 | 44 64 14 18 Cannon . | . . . . Launcher 9 | . 5 4 . Special . | . . . . Kinetic 140 | 44 64 14 18 Thermal . | . . . . Explosive 9 | . 5 4 . Electromagnetic . | . . . . Robot Hit Streak 15 | 8 15 1 10 Robot Miss Streak 4 | 2 3 4 1 Penetration Max . | . . . . Secondary Targets 4 | . 3 1 . Max Gunslinging Chain 1 | . 1 1 . Shots Hit Robots 94 | 27 45 6 16 Core Hits 54 | 8 29 13 4 Critical Kills 1 | . 1 . . Critical Parts Destroyed 1 | . . . 1 Critical Strikes 2 | . 1 . 1 Destroy 2 | . 1 . 1 Melee Attacks . | . . . . Impact . | . . . . Slashing . | . . . . Piercing . | . . . . Sneak Attacks . | . . . . Combat Hostiles . | . . . . Follow-up Attacks . | . . . . Damage Inflicted 1824 | 379 862 382 201 Guns 1278 | 379 598 100 201 Cannons . | . . . . Explosions 542 | . 260 282 . Melee . | . . . . Ramming 4 | . 4 . . Kinetic 1278 | 379 598 100 201 Thermal 61 | . . 61 . Explosive 481 | . 260 221 . Electromagnetic . | . . . . Impact . | . . . . Slashing . | . . . . Piercing . | . . . . Highest Corruption . | . . . . Average Corruption . | . . . . Corruption Purged . | . . . . Corruption Blocked . | . . . . Overload Shots . | . . . . Overflow Damage . | . . . . Projectiles . | . . . . Explosions . | . . . . Melee . | . . . . Knockbacks . | . . . . Impact . | . . . . Kinetic . | . . . . Secondary . | . . . . Self-Inflicted Damage 60 | . . 60 . Shots 2 | . . 2 . Rammed 2 | . 1 1 . Targets Rammed 2 | . 1 1 . Kicked . | . . . . Crushed . | . . . . Highest Temperature 29 | . 29 10 . Average Temperature 10 | . 10 7 . Received Heat Transfer 261 | . 219 . 42 Siege Activations . | . . . . Martial Activations . | . . . . Shielding Activations . | . . . . Robots Disrupted . | . . . . Combat Hostiles . | . . . . Robots Corrupted . | . . . . Combat Hostiles . | . . . . Parts Fried . | . . . . Impact Corruptions . | . . . . Robots Melted . | . . . . Combat Hostiles . | . . . . Parts Melted 2 | . . 2 . Heat Transferred 100 | . . 100 . Parts Sabotaged . | . . . . Parts Stolen . | . . . . Parts Stripped . | . . . . Power Chain Reactions . | . . . . Alert | -11 -10 -10 -10 ------- Run | Yrd Mat Min Sub Maximum Alert Level . | . . . . Low Security (%) 100 | 100 100 100 . Level 1 . | . . . . Level 2 . | . . . . Level 3 . | . . . . Level 4 . | . . . . Level 5 . | . . . . High Security . | . . . . Max Security . | . . . . Peak Influence 114 | 10 114 108 . Initial . | . . . . Average 16 | . 18 26 . Influence Increases 524 | 35 374 115 . Destroy 0b10 Robot/C 320 | . 260 60 . Destroy 0b10 Robot/NC 50 | 35 15 . . Destroy Leader 74 | . 64 10 . Successful Hack 24 | . 24 . . Disable Machine 15 | . . 15 . Destroy Structure 41 | . 11 30 . Influence Decreases 524 | 35 374 115 . Time Decay 351 | 35 208 108 . Lost Part 7 | . . 7 . Purge Threat 166 | . 166 . . Squads Dispatched 3 | . 3 . . Investigation 1 | . 1 . . Extermination . | . . . . Reinforcement 2 | . 2 . . Assault . | . . . . Garrison . | . . . . Intercept . | . . . . Searches Triggered . | . . . . Construction Impeded . | . . . . Haulers Reinforced . | . . . . Active Scanning Responses . | . . . . Cargo Convoy Interrupts . | . . . . Stealth | -11 -10 -10 -10 --------- Run | Yrd Mat Min Sub Distress Signals 2 | . 1 1 . Communications Jammed . | . . . . Distress Signals . | . . . . Times Spotted 38 | . 23 13 2 Peak Tracking Total 5 | . 5 5 1 Tactical Retreats 1 | . . 1 . Traps | -11 -10 -10 -10 ------- Run | Yrd Mat Min Sub Traps Triggered 1 | . 1 . . Indirectly . | . . . . Trap Hack Attempts . | . . . . Triggered . | . . . . Disarmed . | . . . . Reprogrammed . | . . . . Reused . | . . . . Traps Extracted . | . . . . Installed . | . . . . Triggered . | . . . . Machines | -11 -10 -10 -10 ---------- Run | Yrd Mat Min Sub Machines Disabled 1 | . . 1 . Max in Single Turn 1 | . . 1 . Machines Repaired . | . . . . Machines Dismantled . | . . . . Machines Sabotaged . | . . . . Overloaded Fab Kills . | . . . . Hacking | -11 -10 -10 -10 --------- Run | Yrd Mat Min Sub Machines Accessed 6 | . 6 . . Terminals 5 | . 5 . . Fabricators . | . . . . Repair Stations . | . . . . Recycling Units 1 | . 1 . . Scanalyzers . | . . . . Garrison Access . | . . . . Total Hacks 18 | . 18 . . Successful 11 | . 11 . . Failed 6 | . 6 . . Catastrophic 1 | . 1 . . Database Lockouts 1 | . 1 . . Manual 15 | . 15 . . Terminals 17 | . 17 . . Fabricators . | . . . . Repair Stations . | . . . . Recycling Units 1 | . 1 . . Scanalyzers . | . . . . Garrison Access . | . . . . Terminal Hacks 4 | . 4 . . Robot Analysis 1 | . 1 . . Unreport Threat 2 | . 2 . . Recall Investigation 1 | . 1 . . Fabricator Hacks . | . . . . Repair Station Hacks . | . . . . Recycling Unit Hacks 1 | . 1 . . Process 1 | . 1 . . Scanalyzer . | . . . . Garrison Access Hacks . | . . . . Unauthorized Hacks 6 | . 6 . . Terminals 6 | . 6 . . Botnet 1 | . 1 . . Skim 5 | . 5 . . Fabricators . | . . . . Repair Stations . | . . . . Recycling Units . | . . . . Scanalyzers . | . . . . Garrison Access . | . . . . Data Cores Recovered . | . . . . Used . | . . . . Hacking Detections 4 | . 4 . . Full Trace Events . | . . . . Feedback Events . | . . . . Feedback Blocked . | . . . . Robot Schematics Acquired . | . . . . Robots Built . | . . . . Authchips . | . . . . Time . | . . . . Total Robot Build Rating . | . . . . Part Schematics Acquired . | . . . . Parts Built . | . . . . Authchips . | . . . . Time . | . . . . Total Part Build Rating . | . . . . Part Studies Acquired . | . . . . Parts Repaired . | . . . . Time . | . . . . Parts Recycled . | . . . . Recycled Matter . | . . . . Retrieved Matter . | . . . . Retrieved Components . | . . . . Parts Scanalyzed . | . . . . Part Schematics Acquired . | . . . . Parts Damaged . | . . . . Bothacking | -11 -10 -10 -10 ------------ Run | Yrd Mat Min Sub Used RIF Installer . | . . . . Robots Hacked . | . . . . Non-combat . | . . . . Combat . | . . . . Robot Hacks Applied . | . . . . Relay Couplers Released . | . . . . Fabnet Peak Effective % . | . . . . Robots Rewired . | . . . . Allies Hacked . | . . . . Hacks Repelled . | . . . . Allies | -11 -10 -10 -10 -------- Run | Yrd Mat Min Sub Total Allies . | . . . . Largest Group . | . . . . Highest-Rated Group . | . . . . Highest-Rated Ally . | . . . . Total Orders . | . . . . Ally Attacks . | . . . . Total Damage . | . . . . Kills . | . . . . Allies Corrupted . | . . . . Allies Melted . | . . . . Intel | -11 -10 -10 -10 ------- Run | Yrd Mat Min Sub Active Infowar (turns) 1975 | 303 456 332 884 Terrain 632 | . . . 632 Seismic 1343 | 303 456 332 252 Robot Analysis Total 1 | . 1 . . Derelict Logs Recovered 2 | . . 1 1 Drone Launches . | . . . . Drone Recoveries . | . . . . Exploration | -11 -10 -10 -10 ------------- Run | Yrd Mat Min Sub Turns Passed 3273 | 395 1523 417 938 Spaces Moved 1248 | 195 628 221 204 Core 2 | 2 . . . Treads 1037 | 193 628 214 2 Legs . | . . . . Wheels 209 | . . 7 202 Hover . | . . . . Flight . | . . . . Fastest Speed 50 | 50 160 110 110 Average Speed 151 | 158 160 158 112 Slowest Speed 240 | 160 160 160 240 Overloaded Moves . | . . . . Propulsion Burnouts . | . . . . Robots Hopped . | . . . . Potential Cave-ins . | . . . . Cave-ins Triggered . | . . . . Exploration Rate (%) 40 | 7 98 41 17 Regions Visited 3 Branch Regions 2 Pre-discovered Areas 1 | . . . 1 Known Exits Taken . | . . . . Unknown Exits Taken 3 | 1 1 1 . Scrap Searched 4 | . . 2 2 Spaces Dug . | . . . . Terrain Destroyed 47 | . 11 36 . Melee . | . . . . Projectile . | . . . . AOE 47 | . 11 36 . Terrain Rammed . | . . . . Walls Destroyed . | . . . . Machines Disabled . | . . . . Actions | -11 -10 -10 -10 --------- Run | Yrd Mat Min Sub Total 2463 | 233 1074 265 891 Wait 1066 | 6 373 23 664 Move 1245 | 194 627 220 204 Hop . | . . . . Pick Up 20 | 4 13 . 3 Fast Attach 7 | 7 . . . Attach 3 | . . 3 . Detach . | . . . . Swap 34 | . 17 7 10 Drop 7 | . 6 . 1 Fire 79 | 22 37 11 9 Melee . | . . . . Ram . | . . . . Kick . | . . . . Crush 2 | . 1 1 . Escape Stasis . | . . . . Rewire . | . . . . Trap . | . . . . Miscellaneous . | . . . . Route ------- -11/Scrapyard -10/Materials (discovered 6 exits: [*Mat x3] / [*Min x2] / [*Sub]) -10/Mines -10/Subcaves History --------- Turn | Location | Event 10 | -11/Scrapyard | Discovered new exit (range 15) 396 | -11/Scrapyard | Entered Materials 397 | -10/Materials | Build established: Mutant 481 | -10/Materials | Discovered new exit (range 10) 859 | -10/Materials | Discovered new exit (range 16) 1112 | -10/Materials | Discovered new exit (range 10) 1122 | -10/Materials | Discovered new exit (range 15) 1425 | -10/Materials | Core integrity fell below 50% 1459 | -10/Materials | Discovered new exit (range 7) 1571 | -10/Materials | Discovered new exit (range 9) 1584 | -10/Materials | Central database locked down 1645 | -10/Materials | Loaded intel: 11 trap records 1695 | -10/Materials | Learned location of 1 exit from Storage 1737 | -10/Materials | Learned 2 Storage zone layouts 1786 | -10/Materials | Learned Storage stockpile data 1796 | -10/Materials | Learned Storage emergency access door positions 1797 | -10/Materials | Learned location of 2 exits from Materials 1824 | -10/Materials | Learned location of 1 exit from Storage 1894 | -10/Materials | Loaded intel: 2 recycling unit locations 1919 | -10/Materials | Entered Mines 1977 | -10/Mines | Met a Derelict bent on vengeance 2168 | -10/Mines | Learned location of 1 exit from Materials 2191 | -10/Mines | Discovered new exit (range 10) 2251 | -10/Mines | Assembled infested the area 2256 | -10/Mines | Assisted by a Guerilla fighting off Assembled 2299 | -10/Mines | Core integrity fell below 20% 2336 | -10/Mines | Entered Subcaves 2337 | -10/Subcaves | Approached by a straggling Scientist 2338 | -10/Subcaves | Lost 3 parts (1p1n1u) 2340 | -10/Subcaves | Learned location of Mines (-10) 3149 | -10/Subcaves | Disturbed a concealed Subdweller 3274 | -10/Subcaves | Destroyed by 2V-G4Y(R) with Subdweller Laser Last Messages --------------- 03133_ Found Sub. Machine Gun. 03133_ Found 57 Matter. 03134_ Acquired 57 matter. 03135_ Acquired Sub. Machine Gun. 03139_ Searching scrap... 03139_ Found Sub. Beam Cannon. 03139_ Found 58 Matter. 03140_ Acquired 58 matter. 03146_ Acquired Sub. Beam Cannon. 03149_ IY-5RU(R) angrily emerges from the Twisted Machinery. 3Z-K0E(c): "I think it's somewhere northeast of here" 03157_ IY-5RU(R) destroyed. 03160_ Acquired 50 matter. 03161_ Subatomizers dissect the Sub. Beam Cannon. 3Z-K0E(c): "I think it's somewhere northeast of here" 3Z-K0E(c): "I think it's somewhere east of here" 03263_ 2V-G4Y(R) suffers critical hit (Destroy). 03263_ Destroyed Sub. Monowheel. 03272_ Critical hit (Destroy). 03272_ Lgt. Armor Plating destroyed. Map ----- +----------------------------------------------------+ | ?????????????????????????????????????????????????? | | ?????????????????????????????????????????????????? | | ?????????????????????????????????????????????????? | | ?????????????????????????????????????????????????? | | ?????????????????????????????????????????????????? | | ?????????????????????????????????????????????????? | | ?????????????????????????????????????????????????? | | ?????????????????????????????????????????????????? | | ?????????????????????????????????????????????????? | | ?????????????????????? ?????????????????????????? | | ????????????????????? ?????????????????????????? | | ????????????????????? ?????????????????????????? | | ?????????????????????? ?????????????????????????? | | ?????????????????????? ##???????????????????????? | | ?????????????????????? ???????????????????????? | | ?????????????????????? ???????????????????????? | | ?????????????????????? ???????????????????????? | | ?????????????????????## #???????????????????????? | | ?????????????????????# ##??????????????????????? | | ?????????????????????# #??????????????????????? | | ?????????????????????? #??????????????????????? | | ??????????????????????# ???????????????????????? | | ??????????????????????# ???????????????????????? | | ?????????????????????## #???????????????????????? | | ?????????????????????# R##??????????????????????? | | ?????????????????????#" @####???????????????????? | | ?????????????????????#" #####???????????????? | | ?????????????????????### "" #???????????????? | | ???????????????????????# " " ##???????????????? | | ??????????????????????## """ " #????????????????? | | ???????????????????? """"""" ##????????????????? | | ???????????????????? "" """"c#?????????????????? | | ???????????????????###""" """" #?????????????????? | | ?????????????????????# " """" #?????????????????? | | ?????????????????????# " #?????????????????? | | ?????????????????????#"""" ##?????????????????? | | ?????????????????????# " #??????????????????? | | ????????????????????# " #??????????????????? | | ????????????????????# ### #??????????????????? | | ????????????????????## #??# #??????????????????? | | ?????????????????????##????# #??????????????????? | | ?????????????????????????### #??????????????????? | | ??????????????????????#### # #??????????????????? | | ??????????????????????# #??????????????????? | | ??????????????????????## ## #??????????????????? | | ?????? ### ## #?????# # ####???????????????? | | ?????????? "#### ## ##??????????????? | | ?????????????????# # #??????????????? | | ??????????????# ###????????????? | | ??????????????## ### ##???????????? | +----------------------------------------------------+ Best States ------------- Heat Dissipation 25 Energy Generation 10 Energy Capacity 250 Matter Stores 300 Matter Capacity 300 Sight Range 16 Terrain Scan Range 16 Terrain Scan Density 10 Armor Coverage 150 Evasion (%) 40 Recoil Reduction 2 Item Schematics ----------------- None Robot Schematics ------------------ None Fabricated ------------ Nothing Repaired ---------- Nothing Studied --------- None Alien Tech Used ----------------- None Achievements -------------- None Challenges ------------ None Game ------ Seed EnergyJunkPower Manual? 0 Play Time 00:20:05 Cumulative 435.0 hours Start 2026.08.17 @ 00:55:46 End 2026.08.17 @ 01:13:00 Sessions 1 Manual Loads 0 Difficulty Rogue Special Mode None Game No. 320 Rogue 320 Adventurer 0 Explorer 0 Win Type - Total 9 Types 4/0/3/2/0/0/0/0/0/0 Lore% 78 Gallery% 73 Achievement% 55 Wizard Run 0 Options --------- Layout 2 ASCII 0 Keyboard 1 Movement Vi Keybinds 0 Fullscreen 2 Font 32/SmallcapsGlow Map View 77x44 Zoom Use 0% Tactical HUD 1 Map Filters NONE Filters NONE Steam 1 RUN: e99febf8-a289-41e2-9126-af0b15eb9adf